Cogmind - Beta 12 @@@ ROGUE MODE // 2023.04.06 @ 10:32:02 Player: Exp. Geonium Core Result: Destroyed by B-75 Beast with Magnetic Acceleration Cannon Performance ------------- Evolutions (4) 2000 Regions Visited (13) 2600 Robots Destroyed (116) 580 Value Destroyed (4509) 4509 Prototype IDs (35) 700 Alien Tech Used (0) 0 Bonus (1696) 1696 TOTAL SCORE: 12085 Bonus ------- High Alert Combat Kills 497 Follower Combat Kills 453 Entered Garrisons 400 Used RIF Installer 500 Aligned with FarCom 300 Friendly Fire -454 Cogmind --------- Core Integrity 0/850 Matter 300/300 Energy 100/100 System Corruption 8% Temperature Cool (0) Movement Core (50) Location -6/Garrison Parts ------- > --- POWER (1) -------- (None) > --- PROPULSION (4) --- Treaded Carbon-Gravmag Exoskeleton > --- UTILITY (7) ------ Scrap Engine Machine Analyzer Improved Targeting Computer > --- WEAPON (3) ------- (None) > --- INVENTORY (5) ---- Advanced Heat Sink Makeshift Axe Peak State ------------ > --- POWER ------------ Multi-Antimatter Reactor > --- PROPULSION ------- Treaded Carbon-Gravmag Exoskeleton > --- UTILITY ---------- Armored Scrap Engine Huge Storage Unit Machine Analyzer Transport Network Coupler Improved Targeting Computer Experimental Targeting Computer > --- WEAPON ----------- Hvy. KE HMG Construct/C Electro Gauss Construct/G > --- INVENTORY -------- Heat Sink Improved Heat Sink Advanced Heat Sink Improved Cooling System Gravity Neutralizer Structural Scanner Sensor Array Seismic Detector Improved Targeting Computer Advanced Weapon Cycler 8R-AWN's Armor/EX Focal Shield AS-neutralizer No. 17b 8R-AWN's Boregun Plasma Cutter Maul Axe Makeshift Axe [Rating: 84] Favorites ----------- Power Constructs Engine Heavy Ion Engine Power Core Light Nuclear Core Reactor Constructs Propulsion Light Treads Treads Light Treads Leg Aluminum Leg Wheel Wheel Utility Huge Storage Unit Device Armored Scrap Engine Storage Huge Storage Unit Processor Machine Analyzer Hackware Hacking Suite Protection Light Armor Plating Weapon Constructs Energy Gun Constructs Energy Cannon Constructs Ballistic Gun Assault Rifle Launcher Rocket Launcher Special Weapon Plasma Cutter Impact Weapon Maul Slashing Weapon Katana Build | -11 -10 -10 -9 -9 -9 -8 -8 -8 -8 -6 -6 -6 -6 ------- Run | Jun Mat Min Mat Min Exi Min Mat Sto Rec Fac Gar Fac Gar Slots Evolved 8 | . . . 2 . . . 2 . . 4 . . . Power . | . . . . . . . . . . . . . . Propulsion 2 | . . . 1 . . . 1 . . . . . . Utility 5 | . . . 1 . . . 1 . . 3 . . . Weapon 1 | . . . . . . . . . . 1 . . . Parts Attached 96 | . 12 1 20 14 8 4 3 13 4 9 6 . 2 Power 6 | . 2 . 2 . . . . 1 . . 1 . . Engine 4 | . 1 . 2 . . . . 1 . . . . . Core 2 | . 1 . . . . . . . . . 1 . . Reactor . | . . . . . . . . . . . . . . Propulsion 19 | . 3 1 7 . 1 1 1 3 2 . . . . Treads 15 | . 2 1 6 . 1 1 1 3 . . . . . Leg . | . . . . . . . . . . . . . . Wheel 4 | . 1 . 1 . . . . . 2 . . . . Hover . | . . . . . . . . . . . . . . Flight . | . . . . . . . . . . . . . . Utility 35 | . 3 . 2 6 3 1 1 6 1 8 3 . 1 Device 18 | . 1 . 1 4 . 1 . 3 1 5 1 . 1 Storage 2 | . 2 . . . . . . . . . . . . Processor 7 | . . . . . 1 . 1 1 . 2 2 . . Hackware 1 | . . . . . . . . . . 1 . . . Protection 7 | . . . 1 2 2 . . 2 . . . . . Artifact . | . . . . . . . . . . . . . . Weapon 36 | . 4 . 9 8 4 2 1 3 1 1 2 . 1 Energy Gun 8 | . . . 6 2 . . . . . . . . . Energy Cannon . | . . . . . . . . . . . . . . Ballistic Gun 10 | . 2 . 1 3 . 1 . 2 . . 1 . . Ballistic Cannon . | . . . . . . . . . . . . . . Launcher 8 | . 2 . 1 2 . 1 1 . . . 1 . . Special Weapon 1 | . . . . . 1 . . . . . . . . Impact Weapon 1 | . . . . . . . . . . 1 . . . Slashing Weapon 8 | . . . 1 1 3 . . 1 1 . . . 1 Piercing Weapon . | . . . . . . . . . . . . . . Special Melee Weapon . | . . . . . . . . . . . . . . Unidentified Prototypes 5 | . . . 1 . . . . 2 . 1 1 . . Parts Lost 40 | . 1 . 5 2 3 . . 3 . . 8 . 18 Power 3 | . 1 . . . . . . . . . 1 . 1 Propulsion 7 | . . . 2 . . . . 2 . . 1 . 2 Utility 19 | . . . . 1 3 . . 1 . . 2 . 12 Weapon 11 | . . . 3 1 . . . . . . 4 . 3 Highest Loss Streak 16 | . 1 . 3 1 3 . . 2 . . 4 . 16 To Critical Strikes . | . . . . . . . . . . . . . . Average Slot Usage (%) 80 | . 92 100 99 99 100 100 92 98 71 65 66 66 55 Engine 6 | . 12 14 11 11 11 11 9 9 8 6 1 . . Reactor 1 | . . . . . . . . . . . 4 6 4 Treads 15 | . 19 14 21 33 33 33 36 34 8 . 2 6 6 Leg 1 | . 1 . . . . . . . . . 2 . . Wheel 2 | . 6 14 11 . . . . . 7 1 . . . Device 8 | . 7 14 11 11 9 8 9 10 9 15 6 6 6 Storage 8 | . 14 14 11 11 11 11 9 9 9 6 6 6 4 Processor 12 | . . . . . 1 2 2 9 9 16 25 26 20 Protection 3 | . . . 11 10 11 11 9 6 . . . . . Energy Gun 5 | . 6 . 12 7 . . . . 8 1 4 6 4 Energy Cannon 1 | . . . . . . . . . . 4 3 6 4 Ballistic Gun 5 | . 21 28 6 10 . 4 5 4 . . 2 . . Slashing Weapon 4 | . . . . 3 21 16 9 12 6 . . . 1 Naked Turns . | . . . . . . . . . . . . . . Heaviest Build 111 | 12 88 88 99 102 103 97 98 102 94 93 109 109 111 Greatest Support 92 | 20 40 10 60 60 60 60 80 92 60 40 86 82 82 Greatest Overweight (x) 15 | . 8 8 9 1 1 1 1 1 15 2 3 1 1 Average Overweight (x) 1 | . 3 8 3 1 1 1 1 1 2 2 1 1 . Largest Inventory Capacity 25 | . 25 25 25 25 25 25 25 25 25 25 25 25 25 Average Capacity 24 | . 19 25 25 25 25 25 25 25 25 25 25 25 19 Most Carried 25 | . 24 25 25 25 25 25 25 25 25 22 25 25 25 Average Carried 21 | . 12 24 24 24 24 24 24 24 23 19 19 25 18 Final Capacity 25 | 8 25 25 25 25 25 25 25 25 25 25 25 25 5 Final Carried 25 | 6 24 25 25 25 25 25 25 25 23 20 25 25 2 Scrap Engine Consumption 131 | . . . . . . . . . 38 10 76 . 7 Constructs Created 9 | . . . . . . . . . 4 . 5 . . Constructs Modified 44 | . . . . . . . . . 8 4 32 . . Class Distribution -------------------- 34% | Mutant 25% | Commander-Construct 21% | Construct 15% | Scavenger-Mutant Dominant Class ---------------- Mutant | -10/Materials Mutant | -10/Mines Mutant | -9/Materials Mutant | -9/Mines Mutant | -9/Exiles Scavenger-Mutant | -8/Mines Scavenger-Mutant | -8/Materials Scavenger-Mutant | -8/Storage Construct | -8/Recycling Construct | -6/Factory Commander-Construct | -6/Garrison Bothacker-Construct | -6/Factory Bothacker-Construct | -6/Garrison Resources | -11 -10 -10 -9 -9 -9 -8 -8 -8 -8 -6 -6 -6 -6 ----------- Run | Jun Mat Min Mat Min Exi Min Mat Sto Rec Fac Gar Fac Gar Matter Collected 2065 | 200 330 22 296 173 106 27 82 219 81 80 437 . 12 Remotely . | . . . . . . . . . . . . . . Salvage Created 4699 | . 555 . 727 316 120 158 166 561 331 379 1280 . 106 Parts 249 | . 40 . 45 16 7 10 12 35 13 8 59 . 4 Haulers Intercepted 7 | . 2 . 3 . . . . 1 . 1 . . . Recyclers Shooed 5 | . 3 . 1 . . . . 1 . . . . . Parts Field Recycled . | . . . . . . . . . . . . . . Retrieved Matter . | . . . . . . . . . . . . . . Parts Self-Destructed . | . . . . . . . . . . . . . . Prevented . | . . . . . . . . . . . . . . Kills | -11 -10 -10 -9 -9 -9 -8 -8 -8 -8 -6 -6 -6 -6 ------- Run | Jun Mat Min Mat Min Exi Min Mat Sto Rec Fac Gar Fac Gar Combat Hostiles Destroyed 90 | . 13 . 13 9 1 7 4 8 . 4 27 . 4 Melee 12 | . . . . . 1 . 1 5 . 1 1 . 3 Guns 40 | . 8 . 10 7 . . . 3 . . 12 . . Cannons 11 | . . . . . . . . . . 1 9 . 1 AOE 24 | . 5 . 3 2 . 7 3 . . . 4 . . Classes Destroyed 15 | . 7 . 2 . . 3 . . . 1 2 . . Worker 5 | . 3 . . . . 1 . . . 1 . . . Builder 3 | . 2 . . . . . 1 . . . . . . Tunneler 1 | . . . . . . 1 . . . . . . . Hauler 7 | . 2 . 3 . . . . 1 . 1 . . . Recycler 8 | . . . . . . 1 . 1 5 1 . . . Mechanic 1 | . 1 . . . . . . . . . . . . Watcher 1 | . 1 . . . . . . . . . . . . Swarmer 24 | . 5 . . 4 . 4 . . . 3 4 . 4 Cutter 2 | . . . . . . . . . . . 2 . . Grunt 39 | . 8 . 7 3 . 2 3 4 . . 12 . . Brawler 1 | . . . . . . 1 . . . . . . . Duelist 2 | . . . 1 . . . . . . . 1 . . Sentry 17 | . . . 5 2 . . 1 4 . . 5 . . Specialist 1 | . . . . . . . . . . . 1 . . Programmer 3 | . . . . . . . . . . 1 2 . . Best Kill Streak 12 | . 12 . 4 3 1 10 4 3 2 4 8 . 3 Combat Bots Only 8 | . 8 . 4 3 1 7 3 3 . 4 8 . 3 Max Kills in Single Turn 3 | . 2 . 3 2 1 3 2 1 1 1 1 . 1 Gunslinging . | . . . . . . . . . . . . . . Exploded 3 | . 2 . 3 2 . 3 2 . . . 1 . . Melee 1 | . . . . . 1 . 1 1 . 1 1 . 1 Uniques/NPCs Destroyed 1 | . . . . . 1 . . . . . . . . 8R-AWN (-9/Exiles) Combat | -11 -10 -10 -9 -9 -9 -8 -8 -8 -8 -6 -6 -6 -6 -------- Run | Jun Mat Min Mat Min Exi Min Mat Sto Rec Fac Gar Fac Gar Damage Taken 8007 | . 678 . 693 227 427 108 255 732 . 300 2347 . 2240 Core 1310 | . 132 . 165 13 14 19 13 89 . 16 400 . 449 Absorbed by Shields 28 | . . . . . . . . . . . 10 . 18 Regen/Repaired (Parts) 475 | . . . . . . . . . 5 123 347 . . Core Remaining (%) 68 | 100 . 47 . . . 47 . . 81 . . . . Volleys Fired 368 | . 48 . 46 15 3 5 3 15 . 2 217 1 13 Largest 3 | . 2 . 2 2 1 1 1 1 . 1 3 1 2 Hottest 173 | . 70 . 90 90 20 33 33 23 . 45 173 134 160 Shots Fired 494 | . 91 . 77 26 3 5 3 15 . 2 254 1 17 Gun 273 | . 87 . 73 25 . . . 15 . . 69 . 4 Cannon 196 | . . . . . . . . . . 2 180 1 13 Launcher 22 | . 4 . 4 1 . 5 3 . . . 5 . . Special 3 | . . . . . 3 . . . . . . . . Kinetic 332 | . 63 . 32 8 . . . 15 . . 200 1 13 Thermal 28 | . 24 . . . 3 . . . . . 1 . . Explosive 22 | . 4 . 4 1 . 5 3 . . . 5 . . Electromagnetic 112 | . . . 41 17 . . . . . 2 48 . 4 Robot Hit Streak 20 | . 14 . 9 8 3 1 2 6 . 1 20 . 12 Robot Miss Streak 7 | . 3 . 4 1 1 3 1 1 . 1 7 . 2 Penetration Max 1 | . . . . . . . . . . . 1 . . Secondary Targets 5 | . 3 . . 1 . . . . . . 1 . . Max Gunslinging Chain 1 | . 1 . . 1 . . . . . . 1 . . Shots Hit Robots 314 | . 64 . 53 18 18 3 7 31 5 11 86 . 18 Core Hits 214 | . 35 . 27 13 5 12 8 13 3 3 90 . 5 Critical Kills 5 | . 2 . . . . . . . . . 3 . . Critical Parts Destroyed 5 | . 1 . . . . . . . . 2 2 . . Critical Strikes 18 | . 5 . 1 . . . 1 3 . 2 6 . . Burn 2 | . 2 . . . . . . . . . . . . Destroy 6 | . 3 . . . . . . . . . 3 . . Corrupt 2 | . . . 1 . . . . . . . 1 . . Smash 4 | . . . . . . . . . . 2 2 . . Sever 4 | . . . . . . . 1 3 . . . . . Melee Attacks 99 | . . . 1 1 18 1 10 25 9 13 9 . 12 Impact 22 | . . . . . . . . . . 13 9 . . Slashing 77 | . . . 1 1 18 1 10 25 9 . . . 12 Piercing . | . . . . . . . . . . . . . . Sneak Attacks 10 | . . . . . 2 1 . 1 5 1 . . . Combat Hostiles . | . . . . . . . . . . . . . . Follow-up Attacks 6 | . . . . . 3 . . 3 . . . . . Damage Inflicted 10352 | . 1417 . 1132 399 664 753 505 875 336 473 2999 . 799 Guns 3061 | . 822 . 691 263 . . . 198 . . 1053 . 34 Cannons 1545 | . . . . . . . . . . 18 968 . 559 Explosions 3007 | . 592 . 429 136 . 695 328 . . . 827 . . Melee 2712 | . . . . . 662 58 177 667 336 455 151 . 206 Ramming 25 | . 3 . 12 . . . . 10 . . . . . Kinetic 2792 | . 536 . 279 73 . . . 198 . . 1147 . 559 Thermal 433 | . 286 . 54 34 2 . . . . . 57 . . Explosive 2879 | . 592 . 375 102 . 695 328 . . . 787 . . Electromagnetic 1511 | . . . 412 190 . . . . . 18 857 . 34 Impact 606 | . . . . . . . . . . 455 151 . . Slashing 2106 | . . . . . 662 58 177 667 336 . . . 206 Piercing . | . . . . . . . . . . . . . . Highest Corruption 8 | . . . 3 3 3 3 . . . . 3 3 8 Average Corruption 2 | . . . 3 3 3 3 . . . . 2 3 3 Corruption Purged . | . . . . . . . . . . . . . . Corruption Blocked . | . . . . . . . . . . . . . . Effects 113 | . . . 12 25 8 5 . . . . 57 3 3 Message Errors 25 | . . . 1 10 . . . . . . 11 2 1 Matter Fused 31 | . . . 4 3 1 4 . . . . 18 . 1 Heat Flow Errors 17 | . . . 1 4 3 . . . . . 9 . . Energy Discharges 12 | . . . 2 2 1 . . . . . 7 . . Parts Rejected 1 | . . . . 1 . . . . . . . . . Parts Fused 1 | . . . . . 1 . . . . . . . . Data Loss (minor) 15 | . . . 1 3 1 . . . . . 8 1 1 Data Loss (major) 8 | . . . 1 2 1 1 . . . . 3 . . Alerts 1 | . . . 1 . . . . . . . . . . Weapon Failures 2 | . . . 1 . . . . . . . 1 . . Overload Shots . | . . . . . . . . . . . . . . Overflow Damage 461 | . 54 . . 10 . 36 . 1 85 147 126 . 2 Projectiles 27 | . . . . . . . . . . . 25 . 2 Explosions 82 | . 54 . . 10 . 18 . . . . . . . Melee 352 | . . . . . . 18 . 1 85 147 101 . . Knockbacks 9 | . . . . . . . . . . 3 4 . 2 Impact 4 | . . . . . . . . . . 3 1 . . Kinetic 4 | . . . . . . . . . . . 3 . 1 Secondary 1 | . . . . . . . . . . . . . 1 Self-Inflicted Damage 307 | . 45 . 9 54 . 20 16 . . . 163 . . Shots 12 | . 2 . 1 1 . 1 2 . . . 5 . . Rammed 8 | . 1 . 4 . . . . 3 . . . . . Targets Rammed 8 | . 1 . 4 . . . . 3 . . . . . Kicked . | . . . . . . . . . . . . . . Crushed . | . . . . . . . . . . . . . . Highest Temperature 352 | . 132 . 120 293 255 6 3 20 . . 352 72 228 Average Temperature 72 | . 48 . 17 93 108 4 3 20 . . 77 41 87 Received Heat Transfer 1833 | . 285 . 183 96 6 27 72 369 . . 597 . 198 Effects 2 | . . . . . . . . . . . 2 . . Energy Bleed 2 | . . . . . . . . . . . 2 . . Siege Activations . | . . . . . . . . . . . . . . Robots Corrupted 1 | . . . . . . . . . . . 1 . . Combat Hostiles 1 | . . . . . . . . . . . 1 . . Parts Fried 8 | . . . . 1 . . . . . 4 3 . . Impact Corruptions 12 | . . . . . . . . . . 8 3 . 1 Robots Melted . | . . . . . . . . . . . . . . Combat Hostiles . | . . . . . . . . . . . . . . Parts Melted 3 | . 2 . . 1 . . . . . . . . . Heat Transferred 1217 | . 962 . 100 50 18 . . . . . 87 . . Parts Sabotaged . | . . . . . . . . . . . . . . Parts Stolen . | . . . . . . . . . . . . . . Parts Stripped . | . . . . . . . . . . . . . . Power Chain Reactions 3 | . . . 1 1 . . . . . . 1 . . Missiles Intercepted . | . . . . . . . . . . . . . . Alert | -11 -10 -10 -9 -9 -9 -8 -8 -8 -8 -6 -6 -6 -6 ------- Run | Jun Mat Min Mat Min Exi Min Mat Sto Rec Fac Gar Fac Gar Peak Influence 3318 | . 334 73 306 284 . 206 151 197 88 284 3318 1803 1423 Initial 1741 | . . 73 27 60 . . 79 . 42 150 198 1741 1262 Average 705 | . 157 73 121 98 . 90 78 83 31 185 1584 1759 1311 Maximum Alert Level 5 | . 1 . 1 1 . 1 . . . 1 5 5 4 Low Security (%) 50 | . 56 100 79 79 . 56 100 100 100 78 1 . . Level 1 10 | . 43 . 20 20 . 43 . . . 21 3 . . Level 2 1 | . . . . . . . . . . . 4 . . Level 3 12 | . . . . . . . . . . . 31 . . Level 4 8 | . . . . . . . . . . . 17 . 100 Level 5 16 | . . . . . . . . . . . 41 100 . High Security . | . . . . . . . . . . . . . . Max Security . | . . . . . . . . . . . . . . Squads Dispatched 9 | . 2 . 2 . . . 1 2 . 2 . . . Investigation 4 | . 1 . 1 . . . 1 1 . . . . . Extermination 1 | . . . . . . . . . . 1 . . . Reinforcement 2 | . 1 . 1 . . . . . . . . . . Assault . | . . . . . . . . . . . . . . Garrison 2 | . . . . . . . . 1 . 1 . . . Intercept . | . . . . . . . . . . . . . . Searches Triggered . | . . . . . . . . . . . . . . Construction Impeded . | . . . . . . . . . . . . . . Haulers Reinforced . | . . . . . . . . . . . . . . Active Scanning Responses . | . . . . . . . . . . . . . . Cargo Convoy Interrupts . | . . . . . . . . . . . . . . Stealth | -11 -10 -10 -9 -9 -9 -8 -8 -8 -8 -6 -6 -6 -6 --------- Run | Jun Mat Min Mat Min Exi Min Mat Sto Rec Fac Gar Fac Gar Distress Signals 6 | . 1 . 3 . . . . 2 . . . . . Communications Jammed . | . . . . . . . . . . . . . . Distress Signals . | . . . . . . . . . . . . . . Times Spotted 139 | . 28 2 20 9 1 7 5 15 . 5 34 2 11 Peak Tracking Total 9 | . 8 . 5 5 2 6 3 4 . 3 9 2 6 Tactical Retreats 12 | . 1 . 1 2 . . . 3 . . 5 . . Traps | -11 -10 -10 -9 -9 -9 -8 -8 -8 -8 -6 -6 -6 -6 ------- Run | Jun Mat Min Mat Min Exi Min Mat Sto Rec Fac Gar Fac Gar Traps Triggered 21 | . 1 . 1 . . . . 1 . . 13 . 5 Indirectly . | . . . . . . . . . . . . . . Trap Hack Attempts . | . . . . . . . . . . . . . . Triggered . | . . . . . . . . . . . . . . Disarmed . | . . . . . . . . . . . . . . Reprogrammed . | . . . . . . . . . . . . . . Reused . | . . . . . . . . . . . . . . Traps Extracted . | . . . . . . . . . . . . . . Installed . | . . . . . . . . . . . . . . Triggered . | . . . . . . . . . . . . . . Machines | -11 -10 -10 -9 -9 -9 -8 -8 -8 -8 -6 -6 -6 -6 ---------- Run | Jun Mat Min Mat Min Exi Min Mat Sto Rec Fac Gar Fac Gar Machines Disabled 10 | . 1 . 2 . . . . 1 . . 6 . . Max in Single Turn 1 | . 1 . 1 . . . . 1 . . 1 . . Garrison Relay 5 | . . . . . . . . . . . 5 . . Machines Repaired . | . . . . . . . . . . . . . . Machines Sabotaged . | . . . . . . . . . . . . . . Overloaded Fab Kills . | . . . . . . . . . . . . . . Hacking | -11 -10 -10 -9 -9 -9 -8 -8 -8 -8 -6 -6 -6 -6 --------- Run | Jun Mat Min Mat Min Exi Min Mat Sto Rec Fac Gar Fac Gar Machines Accessed 24 | . 3 . 2 . 1 . 3 1 8 2 2 2 . Terminals 19 | . 3 . 2 . . . 3 1 6 1 2 1 . Fabricators . | . . . . . . . . . . . . . . Repair Stations . | . . . . . . . . . . . . . . Recycling Units 2 | . . . . . . . . . 2 . . . . Scanalyzers . | . . . . . . . . . . . . . . Garrison Access 2 | . . . . . . . . . . 1 . 1 . Total Hacks 69 | . 12 . 5 . 1 . 11 3 26 4 4 3 . Successful 33 | . 9 . 1 . 1 . 4 1 12 3 . 2 . Failed 36 | . 3 . 4 . . . 7 2 14 1 4 1 . Catastrophic 5 | . . . 2 . . . . 1 1 . 1 . . Database Lockouts . | . . . . . . . . . . . . . . Manual 48 | . 11 . 2 . 1 . 11 4 12 3 2 2 . Terminals 58 | . 12 . 5 . . . 11 3 18 3 4 2 . Fabricators . | . . . . . . . . . . . . . . Repair Stations . | . . . . . . . . . . . . . . Recycling Units 8 | . . . . . . . . . 8 . . . . Scanalyzers . | . . . . . . . . . . . . . . Garrison Access 2 | . . . . . . . . . . 1 . 1 . Terminal Hacks 17 | . 6 . 1 . 1 . 2 1 5 . . 1 . Part Schematic 4 | . 1 . . . . . . . 3 . . . . Robot Schematic 2 | . 2 . . . . . . . . . . . . Robot Analysis 5 | . 2 . . . . . 1 . 2 . . . . Prototype ID Bank 1 | . 1 . . . . . . . . . . . . Branch Access Points 3 | . . . 1 . . . 1 1 . . . . . Zone Layout 1 | . . . . . . . . . . . . 1 . EX-Prototype ID Bank 1 | . . . . . 1 . . . . . . . . Fabricator Hacks . | . . . . . . . . . . . . . . Repair Station Hacks . | . . . . . . . . . . . . . . Recycling Unit Hacks 2 | . . . . . . . . . 2 . . . . Report Inventory 1 | . . . . . . . . . 1 . . . . Retrieve Components 1 | . . . . . . . . . 1 . . . . Scanalyzer . | . . . . . . . . . . . . . . Garrison Access Hacks 2 | . . . . . . . . . . 1 . 1 . Unlock Access 2 | . . . . . . . . . . 1 . 1 . Unauthorized Hacks 12 | . 3 . . . . . 2 . 5 2 . . . Terminals 10 | . 3 . . . . . 2 . 3 2 . . . Assimilate 2 | . . . . . . . . . . 2 . . . Botnet 6 | . 1 . . . . . 2 . 3 . . . . Disrupt 1 | . 1 . . . . . . . . . . . . Operators 1 | . 1 . . . . . . . . . . . . Fabricators . | . . . . . . . . . . . . . . Repair Stations . | . . . . . . . . . . . . . . Recycling Units 2 | . . . . . . . . . 2 . . . . Tunnel 2 | . . . . . . . . . 2 . . . . Scanalyzers . | . . . . . . . . . . . . . . Garrison Access . | . . . . . . . . . . . . . . Data Cores Recovered . | . . . . . . . . . . . . . . Used . | . . . . . . . . . . . . . . Hacking Detections 22 | . 3 . 2 . . . 3 . 8 2 2 2 . Full Trace Events 2 | . . . . . . . 1 . 1 . . . . Feedback Events . | . . . . . . . . . . . . . . Feedback Blocked . | . . . . . . . . . . . . . . Robot Schematics Acquired 2 | . 2 . . . . . . . . . . . . Robots Built . | . . . . . . . . . . . . . . Authchips . | . . . . . . . . . . . . . . Time . | . . . . . . . . . . . . . . Total Robot Build Rating . | . . . . . . . . . . . . . . Part Schematics Acquired 4 | . 1 . . . . . . . 3 . . . . Parts Built . | . . . . . . . . . . . . . . Authchips . | . . . . . . . . . . . . . . Time . | . . . . . . . . . . . . . . Total Part Build Rating . | . . . . . . . . . . . . . . Parts Repaired . | . . . . . . . . . . . . . . Time . | . . . . . . . . . . . . . . Parts Recycled . | . . . . . . . . . . . . . . Recycled Matter . | . . . . . . . . . . . . . . Retrieved Matter . | . . . . . . . . . . . . . . Retrieved Components 6 | . . . . . . . . . 6 . . . . Parts Scanalyzed . | . . . . . . . . . . . . . . Part Schematics Acquired . | . . . . . . . . . . . . . . Parts Damaged . | . . . . . . . . . . . . . . Bothacking | -11 -10 -10 -9 -9 -9 -8 -8 -8 -8 -6 -6 -6 -6 ------------ Run | Jun Mat Min Mat Min Exi Min Mat Sto Rec Fac Gar Fac Gar Used RIF Installer 1 | . . . . . . . . . . . 1 . . Robots Hacked . | . . . . . . . . . . . . . . Non-combat . | . . . . . . . . . . . . . . Combat . | . . . . . . . . . . . . . . Robot Hacks Applied . | . . . . . . . . . . . . . . Relay Couplers Released 18 | . . . . . . . . . . . 18 . . Machine Destruction 18 | . . . . . . . . . . . 18 . . Fabnet Peak Effective % . | . . . . . . . . . . . . . . Robots Rewired 6 | . . . . . . . . . . . 6 . . Allies Hacked 1 | . . . . . . . . . . . 1 . . Hacks Repelled . | . . . . . . . . . . . . . . Allies | -11 -10 -10 -9 -9 -9 -8 -8 -8 -8 -6 -6 -6 -6 -------- Run | Jun Mat Min Mat Min Exi Min Mat Sto Rec Fac Gar Fac Gar Total Allies 11 | . . . . 4 . . . . . 1 6 . . Largest Group 5 | . . . . 3 3 . . . . 1 5 4 4 Highest-Rated Group 205 | . . . . 40 40 . . . . 10 205 165 165 Highest-Rated Ally 43 | . . . . 31 16 . . . . 10 43 43 43 Total Orders . | . . . . . . . . . . . . . . Ally Attacks 63 | . . . . 4 14 . . . . . 26 4 15 Total Damage 1731 | . . . . 43 23 . . . . . 960 174 531 Kills 14 | . . . . 2 . . . . . . 6 1 5 Allies Corrupted . | . . . . . . . . . . . . . . Allies Melted . | . . . . . . . . . . . . . . Turrets Deployed 2 | . . . . . 2 . . . . . . . . Intel | -11 -10 -10 -9 -9 -9 -8 -8 -8 -8 -6 -6 -6 -6 ------- Run | Jun Mat Min Mat Min Exi Min Mat Sto Rec Fac Gar Fac Gar Robot Analysis Total 5 | . 2 . . . . . 1 . 2 . . . . Derelict Logs Recovered 2 | . . 1 . 1 . . . . . . . . . Drone Launches . | . . . . . . . . . . . . . . Drone Recoveries . | . . . . . . . . . . . . . . Exploration | -11 -10 -10 -9 -9 -9 -8 -8 -8 -8 -6 -6 -6 -6 ------------- Run | Jun Mat Min Mat Min Exi Min Mat Sto Rec Fac Gar Fac Gar Turns Passed 12062 | . 854 257 905 1293 623 320 820 548 1375 347 4376 110 234 Spaces Moved 5148 | 1 390 125 371 496 228 125 105 162 506 171 2280 71 117 Core 37 | . . . . . . . . . . . . . 37 Treads 2566 | . 180 . 124 496 228 125 105 162 31 . 964 71 80 Legs 1071 | 1 45 . . . . . . . . . 1025 . . Wheels 1048 | . 165 125 247 . . . . . 383 48 80 . . Hover 173 | . . . . . . . . . 34 . 139 . . Flight 253 | . . . . . . . . . 58 123 72 . . Fastest Speed 50 | 120 120 200 140 240 240 240 240 240 130 119 119 152 50 Average Speed 184 | 120 172 200 186 240 240 240 240 240 181 162 163 152 130 Slowest Speed 1045 | 120 200 200 320 240 240 240 240 240 1045 185 241 152 152 Overloaded Moves . | . . . . . . . . . . . . . . Propulsion Burnouts . | . . . . . . . . . . . . . . Robots Hopped . | . . . . . . . . . . . . . . Cave-ins Triggered . | . . . . . . . . . . . . . . Exploration Rate (%) 42 | 2 62 39 38 91 60 35 14 40 88 7 96 4 22 Regions Visited 13 Branch Regions 6 Pre-discovered Areas 2 | . . . . . . . . . 2 . . . . Known Exits Taken 6 | . . . 1 . . . 1 1 1 1 . 1 . Unknown Exits Taken 6 | 1 1 1 . 1 1 1 . . . . . . . Scrap Searched 3 | . . 1 . 1 . 1 . . . . . . . Spaces Dug 174 | . 11 . 1 11 . . 5 . 3 . 142 1 . Terrain Destroyed 370 | . 34 . 40 24 . 47 25 . 3 . 194 1 2 Melee 11 | . . . 1 1 . . 5 . 3 . 1 . . Projectile 152 | . . . . . . . . . . . 149 1 2 AOE 207 | . 34 . 39 23 . 47 20 . . . 44 . . Terrain Rammed . | . . . . . . . . . . . . . . Walls Destroyed . | . . . . . . . . . . . . . . Machines Disabled . | . . . . . . . . . . . . . . Actions | -11 -10 -10 -9 -9 -9 -8 -8 -8 -8 -6 -6 -6 -6 --------- Run | Jun Mat Min Mat Min Exi Min Mat Sto Rec Fac Gar Fac Gar Total 7100 | . 478 133 504 568 286 138 655 283 960 210 2644 72 169 Wait 1163 | . 5 5 35 35 12 3 534 53 416 13 46 . 6 Move 5137 | . 389 124 370 495 227 124 104 161 505 171 2279 71 117 Hop . | . . . . . . . . . . . . . . Pick Up 72 | . 20 2 15 5 11 . 1 6 5 . 7 . . Fast Attach 19 | . 1 . 3 1 . . 1 5 4 2 2 . . Attach 29 | . 4 . 7 2 4 1 1 1 . 4 4 . 1 Detach 7 | . . . . . . . . 2 1 1 2 . 1 Swap 48 | . 7 1 10 11 4 3 1 7 . 3 . . 1 Drop 66 | . 3 1 13 3 10 1 . 9 20 1 2 . 3 Fire 368 | . 48 . 46 15 3 5 3 15 . 2 217 1 13 Melee 92 | . . . 1 1 15 1 10 21 9 13 9 . 12 Ram . | . . . . . . . . . . . . . . Kick . | . . . . . . . . . . . . . . Crush 8 | . 1 . 4 . . . . 3 . . . . . Escape Stasis 54 | . . . . . . . . . . . 39 . 15 Rewire 37 | . . . . . . . . . . . 37 . . Trap . | . . . . . . . . . . . . . . Miscellaneous . | . . . . . . . . . . . . . . Route ------- -11/Junkyard -10/Materials -10/Mines -9/Materials (discovered 3 exits: *Mat x2 / *Min) -9/Mines (discovered 3 exits: *Mat x2 / *Exi) -9/Exiles -8/Mines -8/Materials -8/Storage -8/Recycling -6/Factory -6/Garrison (discovered 3 exits: *Fac x3) -6/Factory -6/Garrison History --------- Turn | Location | Event 1 | -11/Junkyard | Discovered new exit (range 0) 1 | -11/Junkyard | Entered Materials 264 | -10/Materials | Discovered new exit (range 14) 326 | -10/Materials | Build established: Mutant 443 | -10/Materials | Destroyed 8 combat bots 777 | -10/Materials | Core integrity fell below 50% 855 | -10/Materials | Entered Mines 934 | -10/Mines | Met a Derelict bent on vengeance 986 | -10/Mines | Learned Materials emergency access door positions 1008 | -10/Mines | Received a Rocket Launcher from a helpful Derelict 1104 | -10/Mines | Discovered new exit (range 5) 1107 | -10/Mines | Assembled infested the area 1112 | -10/Mines | Assisted by a Guerilla fighting off Assembled 1112 | -10/Mines | Entered Materials 1112 | -9/Materials | Evolved 2 slots: Propulsion x1, Utility x1 1588 | -9/Materials | Discovered new exit (range 3) 1693 | -9/Materials | Lost 3 parts (1n2w) 1815 | -9/Materials | Discovered new exit (range 16) 1877 | -9/Materials | Identified exit to Mines 2017 | -9/Materials | Entered Mines 2037 | -9/Mines | Joined a pair of Derelicts in attacking an 0b10 outpost 2219 | -9/Mines | A weapon hastily lodged in a ceiling crevice suddenly fell to the ground 2286 | -9/Mines | Discovered new exit (range 11) 2289 | -9/Mines | Received a Mining Laser from a helpful Derelict 2965 | -9/Mines | Learned Materials terminal intel 2965 | -9/Mines | Assisted by bots powering up and referring to "LRC-V3" 2987 | -9/Mines | Discovered new exit (range 14) 3301 | -9/Mines | Deemed a non-threat by the Exiles lab entrance 3301 | -9/Mines | Discovered new exit (range 5) 3310 | -9/Mines | Entered Exiles 3310 | -9/Exiles | Accompanied by 3 allies 3373 | -9/Exiles | Met 8R-AWN 3413 | -9/Exiles | Met EX-HEX 3483 | -9/Exiles | Met EX-BIN 3512 | -9/Exiles | Aligned with FarCom system 3514 | -9/Exiles | Given EX-Vault access code 3572 | -9/Exiles | Opened EX-Vault 3597 | -9/Exiles | Found Deploy-a-Sentry 3601 | -9/Exiles | Found Deploy-a-Sentry 3604 | -9/Exiles | Found Deploy-a-Sentry 3653 | -9/Exiles | Warned to stay clear of 0b10 Research branches 3673 | -9/Exiles | Exiles lab attacked by MAIN.C 3809 | -9/Exiles | Discovered new exit (range 12) 3832 | -9/Exiles | Attacked by the Exiles 3879 | -9/Exiles | Destroyed 8R-AWN 3890 | -9/Exiles | Found Prototype Device 3895 | -9/Exiles | Found Prototype Ballistic Gun 3904 | -9/Exiles | Lost 3 parts (3u) 3905 | -9/Exiles | DAS Turret deployed 3907 | -9/Exiles | DAS Turret deployed 3912 | -9/Exiles | Found Prototype Protection 3925 | -9/Exiles | Found Prototype Processor 3933 | -9/Exiles | Entered Mines 4111 | -8/Mines | Core integrity fell below 50% 4136 | -8/Mines | Destroyed 7 combat bots 4221 | -8/Mines | Discovered new exit (range 14) 4253 | -8/Mines | Entered Materials 4253 | -8/Materials | Evolved 2 slots: Propulsion x1, Utility x1 4254 | -8/Materials | Loaded intel: 12 terminal locations 4407 | -8/Materials | Build established: Scavenger-Mutant 4835 | -8/Materials | Identified exit to Storage 5073 | -8/Materials | Entered Storage 5135 | -8/Storage | Identified 8R-AWN's Boregun 5531 | -8/Storage | Identified exit to Recycling 5575 | -8/Storage | Garrison activated, responded to threat 5611 | -8/Storage | Used back door to open Recycling access 5621 | -8/Storage | Entered Recycling 5622 | -8/Recycling | Found Scrap Engine 6089 | -8/Recycling | Build established: Construct 6462 | -8/Recycling | Discovered new exit (range 4) 6466 | -8/Recycling | Identified exit to Factory 6996 | -8/Recycling | Entered Factory 6996 | -6/Factory | Evolved 4 slots: Utility x3, Weapon x1 6998 | -6/Factory | Identified AS-neutralizer No. 17b 7267 | -6/Factory | Garrison activated, responded to threat 7333 | -6/Factory | Identified exit to Garrison 7343 | -6/Factory | Entered Garrison 7386 | -6/Garrison | Triggered checkpoint 7590 | -6/Garrison | Destroyed 8 combat bots 7590 | -6/Garrison | Lost 4 parts (1u3w) 7631 | -6/Garrison | Triggered checkpoint 7662 | -6/Garrison | Identified Exp. Targeting Computer 7688 | -6/Garrison | Lost 3 parts (1p1n1u) 7747 | -6/Garrison | Discovered new exit (range 10) 7902 | -6/Garrison | Triggered checkpoint 7984 | -6/Garrison | Triggered checkpoint 8060 | -6/Garrison | Triggered checkpoint 8113 | -6/Garrison | Discovered new exit (range 10) 8290 | -6/Garrison | Discovered new exit (range 14) 8622 | -6/Garrison | Triggered checkpoint 8845 | -6/Garrison | Build established: Commander-Construct 9168 | -6/Garrison | Garrison Relay disabled 9458 | -6/Garrison | Triggered checkpoint 10579 | -6/Garrison | Garrison Relay disabled 11170 | -6/Garrison | Garrison Relay disabled 11474 | -6/Garrison | Installed Relay Interface Framework 11618 | -6/Garrison | Garrison Relay disabled 11641 | -6/Garrison | Garrison Relay disabled 11719 | -6/Garrison | Entered Factory 11719 | -6/Factory | Accompanied by 4 allies 11829 | -6/Factory | Identified exit to Garrison 11829 | -6/Factory | Entered Garrison 11829 | -6/Garrison | Accompanied by 4 allies 11874 | -6/Garrison | Triggered checkpoint 11875 | -6/Garrison | Core integrity fell below 50% 11956 | -6/Garrison | Spotted B-75 Beast 11958 | -6/Garrison | Triggered checkpoint 11961 | -6/Garrison | Build established: Bothacker-Construct 12020 | -6/Garrison | Core integrity fell below 20% 12040 | -6/Garrison | Lost 16 parts (1p1n11u3w) 12063 | -6/Garrison | Destroyed by B-75 Beast with Magnetic Acceleration Cannon Last Messages --------------- 12033_ Scrap Engine envelopes itself in armor. 12038_ Arm. Scrap Engine consumes Unknown Leg. 12041_ Arm. Scrap Engine consumes Lgt. Treads. 12042_ Arm. Scrap Engine consumes Mic. Nuclear Core. 12044_ Arm. Scrap Engine consumes Gravmag System. 12046_ Arm. Scrap Engine destroyed. 12046_ Scrap Engine core remains intact and functional. 12046_ Treaded Carbon-Gravmag Exoskeleton destroyed. 12046_ Treaded Carbon-Gravmag Exoskeleton core remains intact and functional. 12056_ Triggered Stasis Trap. 12056_ A bubble of rippling energy engulfs the area. 12056_ Field strength at 94. 12056_ Field strength at 88. 12057_ Field strength at 82. 12058_ Field strength at 69. 12059_ Field strength at 63. 12060_ Field strength at 53. 12061_ Field strength at 47. 12062_ Field strength at 41. Map ----- +----------------------------------------------------+ | ?????????????????????????????????????????????????? | | ?????????????????????????????????????????????????? | | ?????????????????????????????????????????????????? | | ?????????????????????????????????????????????????? | | ?????????????????????????????????????????????????? | | ?????????????????????????????????????????????????? | | ?????????????????????????????????????????????????? | | ?????????????????????????????????????????????????? | | ?????????????????????????????????????????????????? | | ??????????????? ????????????????????????????????? | | ??????????????? ???????? ?????????????????????? | | ??????????????? #??????? #????????????????????? | | ??????????????? #??????? #????????????????????? | | ?????????????## ##""""## #????????????????????? | | ?????????????# #????????????????????? | | ?????????????# #????????????????????? | | ?????????????# #????????????????????? | | ?????????????# ##^ ## #????????????????????? | | ???????????### ## ^^## #????????????????????? | | ???????????# "????????????????????? | | ???????????# "????????????????????? | | ???????????# "????????????????????? | | ???????????? "????????????????????? | | ????????????##% "# "# % #????????????????????? | | ???##########!! ## ## ##########???????????? | | ???# /[![%!p%!% @ #??????????? | | ???#[%!!! %! !!% #??????????? | | ???#![!/%!!%! %= ^ ######## #??????????? | | ???#!%%######|#;### ######????????????????????? | | ???#^=%#????### #?#CC%C#?????????????????????????? | | #??#%^!#??????# #?######?????????????????????????? | | #??# #?????? #????????????????????????????????? | | #??# #??????###????????????????????????????????? | | #??# #?????????????????????????????????????????? | | #??# #?????????????????????????????????????????? | | #??# #?????????????????????????????????????????? | | #??# #?????????????????????????????????????????? | | #??# #?????????????????????????????????????????? | | #??# #?????????????????????????????????????????? | | #??# #?????????????????????????????????????????? | | #??#^ ^#?????????????????????????????????????????? | | #??# ^#?????????????????????????????????????????? | | #??# #?????????????????????????????????????????? | | #??# #?????????????????????????????????????????? | | #### #?????????????????????????????????????????? | | #?????????????????????????????????????????? | | #?????????????????????????????????????????? | | #### #?????????????????????????????????????????? | | ???# #?????????????????????????????????????????? | | ???# #?????????????????????????????????????????? | +----------------------------------------------------+ Best States ------------- Heat Dissipation 64 Energy Generation 25 Energy Capacity 352 Matter Stores 300 Matter Capacity 300 Sight Range 16 Robot Scan Range 14 Terrain Scan Density 10 Additional Mass Support 12 Armor Coverage 375 Evasion (%) 55 Targeting Accuracy 18 Melee Accuracy 5 Recoil Reduction 4 Offensive Hacking 10 Item Schematics ----------------- Huge Storage Unit | -10/Materials | Hacked Adv. Treads | -8/Recycling | Hacked System Shield | -8/Recycling | Hacked Adv. Assault Cannon | -8/Recycling | Hacked Robot Schematics ------------------ M-13 Machinist | -10/Materials | Hacked S-10 Pest | -10/Materials | Hacked Fabricated ------------ Nothing Alien Tech Used ----------------- None Achievements -------------- None Challenges ------------ None Game ------ Seed ShockMissileBox Manual? 0 Play Time 01:27:56 Cumulative 386.0 hours Start 2023.04.06 @ 08:12:08 End 2023.04.06 @ 10:32:02 Sessions 3 Manual Loads 0 Difficulty Rogue Special Mode None Game No. 425 Rogue 425 Adventurer 0 Explorer 0 Win Type - Total 12 Types 8/0/3/1/0/0/0/0/0 Lore% 81 Gallery% 89 Achievement% 79 Wizard Run 0 Options --------- ASCII 0 Keyboard 0 Movement Numpad Keybinds 0 Fullscreen 1 Font 18/Terminus Map View 76x50 Tactical HUD 1 Map Filters NONE Filters NONE Steam 1 RUN: 3077ab2c-7e4a-40ff-8ddf-8c18f94268ce